bitfinex-derivatives/quotes_SOLF0:USTF0_20241231
["timestamp","ask_amount","ask_price","bid_price","bid_amount"]
[1735657038991,3.36,197.51,197.4,1.4694]
[1735657039186,2.5349,197.49,197.4,1.4694]
[1735657039596,2.5348,197.5,197.4,1.4694]
[1735657039888,12.3381218,197.55,197.42,12.3381218]
[1735657040088,12.3381218,197.55,197.43,2.9414]
[1735657040284,12.3381218,197.55,197.44,3.36]
[1735657040787,2.5343,197.54,197.5,2.5347]
[1735657041385,2.5343,197.54,197.45,12.3381218]
[1735657041386,2.5344,197.53,197.49,2.5349]
[1735657041586,2.5344,197.53,197.45,12.3381218]
[1735657041889,2.5343,197.54,197.49,2.5348]
[1735657042593,2.5341,197.55,197.51,2.5345]
[1735657042798,12.3381218,197.58,197.45,12.3381218]
[1735657043089,2.534,197.56,197.45,12.3381218]
[1735657043289,12.3381218,197.58,197.45,12.3381218]
[1735657043994,2.5339,197.57,197.53,2.5343]
[1735657044693,3.36,197.6,197.55,2.5341]
[1735657044694,2.5337,197.59,197.55,2.5341]
[1735657045896,2.5338,197.58,197.54,2.5342]
[1735657046195,12.3381218,197.58,197.49,1.6001]
[1735657047096,2.5343,197.54,197.51,2.5346]
[1735657048294,2.5339,197.57,197.54,2.5342]
[1735657049097,2.5339,197.57,197.53,2.5343]
[1735657049496,12.3381218,197.58,197.53,2.5343]
[1735657049698,2.534,197.56,197.53,2.5343]
[1735657050991,3.36,197.6,197.49,288.6001]
[1735657051193,12.3381218,197.61,197.5,12.3381218]
[1735657051390,12.3381218,197.61,197.51,3.0792]
[1735657051791,65.0581218,197.64,197.51,6.4392]
[1735657051997,15.6981218,197.64,197.51,6.4392]
[1735657053104,3.36,197.63,197.51,6.4392]
[1735657053500,2.5335,197.6,197.57,2.5338]
[1735657056209,12.3381218,197.61,197.51,3.0792]
[1735657057505,3.36,197.63,197.51,3.0792]
[1735657057710,2.5333,197.62,197.59,2.5335]
[1735657058413,2.5333,197.62,197.6,2.5335]
[1735657059310,2.5333,197.62,197.59,2.5336]
[1735657059619,12.3381218,197.61,197.51,3.0792]
[1735657059812,12.3381218,197.61,197.54,2.5342]
[1735657060220,12.3381218,197.61,197.51,3.0792]
[1735657060418,12.3381218,197.61,197.55,2.5341]
[1735657060815,12.3381218,197.61,197.51,3.0792]
[1735657061017,3.36,197.6,197.51,3.0792]
[1735657061213,2.5338,197.58,197.51,3.0792]
[1735657061517,3.36,197.6,197.51,3.0792]
[1735657062016,12.3381218,197.58,197.49,1.6001]
[1735657062715,12.3381218,197.58,197.49,4.135]
[1735657063119,2.5345,197.53,197.49,4.135]
[1735657063512,12.3381218,197.58,197.49,1.6001]
[1735657063717,2.5347,197.51,197.49,1.6001]
[1735657065321,2.5349,197.49,197.46,2.5353]
[1735657065914,2.5348,197.5,197.47,2.5351]
[1735657066120,2.5348,197.5,197.44,3.0988]
[1735657066815,2.5341,197.55,197.51,2.5345]
[1735657067117,15.6981218,197.59,197.45,12.3381218]
[1735657067520,12.3381218,197.59,197.53,2.5343]
[1735657067715,12.3381218,197.59,197.45,299.3381218]
[1735657068016,2.5341,197.55,197.51,2.5345]
[1735657069518,2.5342,197.54,197.51,2.5345]
[1735657069718,12.3381218,197.59,197.45,299.3381218]
[1735657070118,2.5341,197.56,197.45,299.3381218]
[1735657070721,2.5341,197.55,197.51,2.5345]
[1735657071019,12.3381218,197.59,197.45,299.3381218]
[1735657071217,12.3381218,197.56,197.45,287.0]
[1735657071412,12.3381218,197.56,197.44,6.4588]
[1735657072322,2.5346,197.52,197.48,2.535]
[1735657072825,3.36,197.55,197.44,6.4588]
[1735657073013,12.3381218,197.59,197.47,12.3381218]
[1735657073417,2.534,197.57,197.53,2.5343]
[1735657073821,2.534,197.57,197.47,299.3381218]
[1735657074022,2.534,197.57,197.54,2.5342]
[1735657074217,2.5338,197.58,197.54,2.5342]
[1735657074923,15.6981218,197.62,197.52,2.5344]
[1735657075124,15.6981218,197.62,197.49,290.36]
[1735657075622,2.5339,197.57,197.54,2.5342]
[1735657076123,2.5341,197.55,197.53,2.5343]
[1735657076322,12.3381218,197.59,197.49,290.36]
[1735657077521,2.5341,197.55,197.52,2.5345]
[1735657078120,2.5341,197.55,197.49,3.36]
[1735657078321,2.5345,197.53,197.49,3.36]
[1735657079023,3.36,197.57,197.45,302.6981218]
[1735657079321,2.5346,197.51,197.45,290.36]
[1735657079726,2.5345,197.52,197.49,2.5349]
[1735657081325,12.3381218,197.53,197.44,3.0988]
[1735657081825,12.3381218,197.53,197.46,2.5352]
[1735657082022,12.3381218,197.53,197.44,3.0988]
[1735657082227,12.3381218,197.59,197.45,299.3381218]
[1735657082419,12.3381218,197.59,197.5,2.5347]
[1735657082618,12.3381218,197.59,197.45,12.3381218]
[1735657082818,2.5343,197.54,197.49,2.5349]
[1735657083021,12.3381218,197.59,197.45,12.3381218]
[1735657083422,2.5345,197.53,197.48,2.535]
[1735657083622,12.3381218,197.56,197.48,2.535]
[1735657084024,12.3381218,197.56,197.44,3.0988]
[1735657084823,12.3381218,197.59,197.47,12.3381218]
[1735657085018,12.3381218,197.59,197.47,302.6981218]
[1735657086432,2.534,197.56,197.47,302.6981218]
[1735657086625,12.3381218,197.59,197.47,302.6981218]
[1735657087132,2.5341,197.55,197.5,2.5347]
[1735657087432,12.3381218,197.59,197.47,302.6981218]
[1735657087624,2.5342,197.55,197.51,2.5345]
[1735657087820,2.5342,197.55,197.47,302.6981218]
[1735657088228,2.5342,197.55,197.52,2.5344]
[1735657089232,12.3381218,197.59,197.47,302.6981218]
[1735657089527,2.534,197.56,197.53,2.5343]
[1735657090122,2.5346,197.52,197.49,2.5349]
[1735657090322,3.36,197.54,197.47,287.0]
[1735657090526,12.3381218,197.53,197.47,287.0]
[1735657091027,2.5348,197.5,197.47,2.5351]
[1735657092122,12.3381218,197.53,197.44,3.0988]
[1735657092325,2.535,197.49,197.44,3.0988]
[1735657092728,12.3381218,197.53,197.44,3.0988]
[1735657093028,2.5347,197.51,197.48,2.535]
[1735657093228,12.3381218,197.53,197.48,2.535]
[1735657093430,2.5348,197.5,197.44,3.0988]
[1735657093632,2.5348,197.5,197.47,2.5351]
[1735657093834,2.5346,197.51,197.44,3.0988]
[1735657094230,2.5346,197.51,197.47,2.535]
[1735657094429,2.5348,197.5,197.47,2.535]
[1735657094925,12.3381218,197.53,197.44,3.0988]
[1735657095129,2.5349,197.49,197.46,2.5352]
[1735657097336,2.5351,197.48,197.45,2.5354]
[1735657097536,12.3381218,197.5,197.44,1.4853]
[1735657098234,2.535,197.49,197.44,1.4853]
[1735657098434,12.3381218,197.5,197.44,1.4853]
[1735657099027,12.3381218,197.5,197.39,291.923]
[1735657099233,3.36,197.49,197.39,6.5273]
[1735657099531,2.5355,197.45,197.41,2.5358]
[1735657100438,2.5355,197.45,197.39,3.1673]
[1735657100736,2.5353,197.46,197.43,2.5356]
[1735657101637,3.36,197.49,197.39,3.1673]
[1735657101839,12.3381218,197.53,197.4,12.3381218]
[1735657102040,12.3381218,197.53,197.4,15.6981218]
[1735657102339,7.89009903,197.51,197.44,7.89009903]
[1735657102733,10.42459903,197.53,197.46,7.89009903]
[1735657102932,3.36,197.59,197.48,7.89009903]
[1735657103136,7.89009903,197.55,197.48,7.89009903]
[1735657103338,7.89009903,197.55,197.51,2.5346]
[1735657103942,2.5343,197.54,197.51,2.5346]
[1735657105438,2.5344,197.53,197.49,4.0646]
[1735657105637,12.32421773,197.54,197.48,1.4573]
[1735657107038,15.68421773,197.57,197.48,1.4573]
[1735657107433,15.68421773,197.57,197.52,2.5345]
[1735657107434,2.5341,197.56,197.52,2.5345]
[1735657107639,15.68421773,197.57,197.52,2.5345]
[1735657108037,15.68421773,197.57,197.48,1.4573]
[1735657108734,2.5342,197.55,197.51,2.5345]
[1735657109143,14.85851773,197.54,197.51,2.5346]
[1735657110244,12.32421773,197.54,197.47,1.4814]
[1735657111439,2.5346,197.51,197.48,2.5349]
[1735657113745,12.32421773,197.54,197.47,1.4814]
[1735657113942,12.32421773,197.51,197.44,1.4685]
[1735657114343,2.5349,197.5,197.46,2.5353]
[1735657114737,2.5349,197.5,197.44,1.4685]
[1735657115246,2.5349,197.5,197.46,2.5352]
[1735657116544,12.32421773,197.51,197.46,2.5352]
[1735657116847,12.32421773,197.48,197.43,1.5143]
[1735657117447,2.5351,197.47,197.44,2.5355]
[1735657117643,12.32421773,197.51,197.43,1.5143]
[1735657118249,12.32421773,197.54,197.43,4.8743]
[1735657118444,5.074,197.8,197.44,12.32421773]
[1735657118445,12.32421773,197.57,197.44,12.32421773]
[1735657118645,3.36,197.56,197.44,12.32421773]
[1735657118843,12.32421773,197.57,197.44,299.32421773]
[1735657119243,14.85811773,197.57,197.53,2.5343]
[1735657120049,2.534,197.56,197.53,2.5343]
[1735657121244,12.32421773,197.57,197.51,2.5345]
[1735657121849,2.5341,197.56,197.52,2.5344]
[1735657122051,12.32421773,197.57,197.45,294.01070215]
[1735657122246,12.32421773,197.57,197.45,287.0]
[1735657122442,2.534,197.56,197.52,2.5344]
[1735657123752,12.32421773,197.57,197.46,290.36]
[1735657123950,2.5343,197.54,197.51,2.5346]
[1735657124354,2.534,197.56,197.53,2.5344]
[1735657124850,12.32421773,197.57,197.47,1.504]
[1735657125052,2.5341,197.55,197.52,2.5345]
[1735657125245,12.32421773,197.57,197.52,2.5345]
[1735657125652,2.5342,197.55,197.47,1.504]
[1735657125853,12.32421773,197.51,197.44,287.0]
[1735657126151,12.32421773,197.51,197.44,2.5355]
[1735657126152,3.36,197.5,197.44,2.5355]
[1735657126351,3.36,197.5,197.44,9.54620215]
[1735657126948,2.5353,197.46,197.44,7.01070215]
[1735657127447,12.32421773,197.48,197.43,2.5356]
[1735657127448,2.5352,197.47,197.43,2.5356]
[1735657128846,2.5352,197.47,197.44,2.5355]
[1735657129053,14.85921773,197.48,197.44,2.5355]
[1735657129651,14.85921773,197.48,197.4,1.5941]
[1735657129853,3.36,197.5,197.46,2.5353]
[1735657130051,3.36,197.5,197.4,1.5941]
[1735657131051,2.535,197.48,197.4,1.5941]
[1735657131253,15.68421773,197.54,197.42,12.32421773]
[1735657131553,12.32421773,197.54,197.42,302.68421773]
[1735657131754,14.85851773,197.54,197.42,15.68421773]
[1735657132253,2.5344,197.53,197.5,2.5347]
[1735657132949,2.5343,197.54,197.51,2.5346]
[1735657133653,3.36,197.56,197.42,302.68421773]
[1735657133852,2.5347,197.51,197.47,2.5351]
[1735657134152,12.32421773,197.54,197.47,2.5351]
[1735657134351,2.5347,197.51,197.47,2.5351]
[1735657134552,2.5347,197.51,197.48,2.535]
[1735657135357,2.5348,197.5,197.47,2.5351]
[1735657135544,12.32421773,197.54,197.42,3.36]
[1735657135956,2.5346,197.52,197.48,2.5349]
[1735657136152,12.32421773,197.54,197.42,15.68421773]
[1735657136653,12.32421773,197.54,197.42,302.68421773]
[1735657138255,12.32421773,197.54,197.42,309.69491988]
[1735657138961,2.5345,197.52,197.49,2.5348]
[1735657139453,2.5344,197.54,197.51,2.5345]
[1735657139658,15.68421773,197.57,197.45,12.32421773]
[1735657139957,15.68421773,197.57,197.46,1.4641]
[1735657140157,2.5342,197.55,197.51,2.5345]
[1735657141059,2.5342,197.55,197.46,1.4641]
[1735657141355,2.5342,197.55,197.52,2.5345]
[1735657141960,15.68421773,197.57,197.46,1.4641]
[1735657142259,2.534,197.56,197.53,2.5344]
[1735657142661,2.534,197.56,197.52,2.5345]
[1735657143559,15.68421773,197.57,197.52,2.5345]
[1735657143761,15.68421773,197.57,197.46,1.4641]
[1735657144163,12.32421773,197.54,197.46,1.4641]
[1735657144359,7.89060485,197.51,197.46,1.4641]
[1735657145460,7.89060485,197.51,197.49,2.5348]
[1735657145661,7.89060485,197.51,197.46,1.4641]
[1735657146057,7.89060485,197.51,197.47,2.5351]
[1735657146253,2.5345,197.53,197.46,1.4641]
[1735657147463,14.86154439,197.55,197.46,1.4641]
[1735657147963,15.68744439,197.58,197.54,2.5342]
[1735657148155,18.22134439,197.58,197.46,288.4641]
[1735657148558,145.49444337,197.69,197.48,12.32744439]
[1735657148559,4.232868,197.67,197.48,12.32744439]
[1735657148862,4.232868,197.67,197.49,3.0644]
[1735657148863,2.5336,197.59,197.49,3.0644]
[1735657149362,15.68744439,197.62,197.51,299.32744439]
[1735657150173,18.22064439,197.62,197.51,299.32744439]
[1735657150458,15.68744439,197.62,197.51,287.0]
[1735657150660,12.32744439,197.59,197.51,287.0]
[1735657151462,12.32744439,197.59,197.49,3.0644]
[1735657152061,14.86104439,197.59,197.55,2.534]
[1735657153164,2.5336,197.59,197.49,3.0644]
[1735657153563,2.5335,197.6,197.49,3.0644]
[1735657153760,2.5335,197.6,197.56,2.5339]
[1735657153967,15.68744439,197.62,197.49,290.0644]
[1735657154167,15.68744439,197.62,197.5,12.32744439]
[1735657154860,12.32744439,197.65,197.53,12.32744439]
[1735657155068,15.68744439,197.65,197.54,1.5724]
[1735657155364,18.22034439,197.65,197.54,288.5724]
[1735657156059,12.32744439,197.65,197.62,2.5331]
[1735657156863,2.5331,197.64,197.54,288.5724]
[1735657157168,3.36,197.63,197.54,288.5724]
[1735657157467,2.5336,197.6,197.56,2.5339]
[1735657157763,12.32744439,197.62,197.54,287.0]
[1735657157962,2.5337,197.58,197.55,2.5341]
[1735657158267,12.32744439,197.62,197.49,7.9201]
[1735657158767,12.32744439,197.59,197.49,7.9201]
[1735657158958,12.32744439,197.59,197.49,4.5601]
[1735657159161,2.5341,197.56,197.53,2.5344]
[1735657159461,3.36,197.58,197.49,4.5601]
[1735657160265,2.534,197.57,197.53,2.5344]
[1735657160669,3.36,197.58,197.49,4.5601]
[1735657160967,2.5335,197.6,197.49,4.5601]
[1735657161476,2.5335,197.6,197.56,2.5339]
[1735657162260,15.68744439,197.62,197.49,291.5601]
[1735657162870,2.5339,197.58,197.53,2.5343]
[1735657163267,2.5339,197.58,197.49,291.5601]
[1735657163468,2.5339,197.58,197.54,2.5342]
[1735657163769,2.5339,197.58,197.49,291.5601]
[1735657163770,12.32744439,197.59,197.49,291.5601]
[1735657164472,2.534,197.56,197.49,291.5601]
[1735657164775,2.534,197.56,197.49,4.5601]
[1735657164968,2.534,197.56,197.51,2.5346]
[1735657165166,12.32744439,197.59,197.49,4.5601]
[1735657165373,12.32744439,197.59,197.49,1.55]
[1735657165567,12.32744439,197.59,197.5,2.5347]
[1735657165766,2.5343,197.54,197.5,2.5347]
[1735657166377,2.5343,197.54,197.51,2.5346]
[1735657167077,3.36,197.57,197.49,1.55]
[1735657167279,2.5341,197.55,197.52,2.5345]
[1735657168175,3.36,197.57,197.49,1.55]
[1735657168379,2.534,197.56,197.53,2.5343]
[1735657168583,3.36,197.57,197.49,1.55]
[1735657169180,2.534,197.56,197.53,2.5343]
[1735657170075,5.8939,197.57,197.54,2.5342]
[1735657170274,13.77992205,197.57,197.54,2.5342]
[1735657170882,7.88602205,197.59,197.57,2.5338]
[1735657171181,7.88602205,197.61,197.55,7.88602205]
[1735657171376,2.5331,197.63,197.59,2.5335]
[1735657171583,7.88602205,197.62,197.59,2.5335]
[1735657171776,7.88602205,197.62,197.55,7.88602205]
[1735657171979,7.88602205,197.62,197.6,2.5334]
[1735657172381,11.24602205,197.64,197.57,7.88602205]
[1735657172885,7.88602205,197.64,197.57,7.88602205]
[1735657173088,7.88602205,197.64,197.58,1.4875]
[1735657173288,10.41872205,197.66,197.63,2.5331]
[1735657173491,7.88602205,197.66,197.59,7.88602205]
[1735657174088,7.88602205,197.64,197.59,7.88602205]
[1735657174287,12.31394442,197.66,197.58,1.4875]
[1735657174489,2.533,197.64,197.58,4.0212]
[1735657174687,12.31394442,197.66,197.58,1.4875]
[1735657175291,2.5329,197.65,197.61,2.5333]
[1735657175587,12.31394442,197.66,197.58,1.4875]
[1735657175992,6.765468,197.67,197.63,2.533]
[1735657180389,2.5328,197.66,197.59,1.4925]
[1735657180981,4.232868,197.67,197.61,2.5333]
[1735657181186,4.232868,197.67,197.59,1.4925]
[1735657181589,2.5332,197.63,197.59,2.5336]
[1735657181985,12.31394442,197.66,197.59,2.5336]
[1735657182182,12.31394442,197.66,197.58,1.4875]
[1735657182385,12.31394442,197.63,197.54,1.5058]
[1735657182585,15.67394442,197.63,197.54,1.5058]
[1735657183289,12.31394442,197.6,197.53,2.5343]
[1735657183480,12.31394442,197.6,197.51,1.4625]
[1735657184086,12.31394442,197.57,197.51,1.4625]
[1735657184282,3.36,197.56,197.47,3.099]
[1735657184892,2.5344,197.54,197.5,2.5347]
[1735657185082,3.36,197.56,197.47,3.099]
[1735657186493,2.5345,197.53,197.5,2.5348]
[1735657187189,2.5343,197.54,197.5,2.5348]
[1735657187392,3.36,197.56,197.47,3.099]
[1735657187589,3.36,197.56,197.47,1.5932]
[1735657187991,2.5347,197.51,197.47,4.1283]
[1735657188697,12.31394442,197.54,197.46,1.464]
[1735657188896,2.5349,197.49,197.46,1.464]
[1735657189596,2.5348,197.5,197.46,3.9993]
[1735657192496,2.5348,197.5,197.47,2.5351]
[1735657192703,2.5344,197.53,197.46,1.464]
[1735657192893,12.31394442,197.57,197.46,1.464]
[1735657193093,12.31394442,197.57,197.52,2.5344]
[1735657193799,2.5341,197.56,197.52,2.5344]
[1735657195199,2.5341,197.55,197.52,2.5344]
[1735657196902,12.31394442,197.57,197.46,13.77794442]
[1735657197203,12.31394442,197.57,197.46,1.464]
[1735657197694,2.5346,197.52,197.48,2.5349]
[1735657199004,2.5346,197.52,197.46,1.464]
[1735657199204,12.31394442,197.57,197.46,1.464]
[1735657200407,12.31394442,197.54,197.46,1.464]
[1735657200706,3.36,197.53,197.42,300.90324442]
[1735657200909,3.36,197.53,197.43,1.5405]
[1735657201806,3.36,197.53,197.45,12.31394442]
[1735657202000,2.5344,197.54,197.48,2.5349]
[1735657202308,73.78574108,197.65,197.45,12.31394442]
[1735657202503,12.31394442,197.62,197.48,12.31394442]
[1735657202702,12.31394442,197.62,197.49,1.562]
[1735657202904,12.31394442,197.59,197.49,1.562]
[1735657203100,3.34,197.58,197.49,1.562]
[1735657203306,3.34,197.58,197.52,2.5345]
[1735657203506,3.34,197.58,197.49,1.562]
[1735657203906,2.5344,197.53,197.5,2.5347]
[1735657204200,3.34,197.58,197.49,1.562]
[1735657204404,2.534,197.56,197.51,2.5345]
[1735657204603,3.34,197.58,197.49,1.562]
[1735657205003,2.534,197.57,197.49,3.05]
[1735657205306,3.34,197.58,197.49,3.05]
[1735657205504,2.5338,197.58,197.49,3.05]
[1735657205707,2.5338,197.58,197.49,6.39]
[1735657206611,52.68,197.65,197.51,12.31394442]
[1735657206612,12.31394442,197.65,197.51,12.31394442]
[1735657206805,12.31394442,197.65,197.54,12.31394442]
[1735657207410,12.31394442,197.68,197.55,3.34]
[1735657207610,15.65394442,197.68,197.55,3.34]
[1735657207805,15.65394442,197.68,197.55,290.34]
[1735657207806,2.5329,197.65,197.55,290.34]
[1735657208210,12.31394442,197.68,197.55,290.34]
[1735657208412,2.5328,197.66,197.62,2.5332]
[1735657208612,12.31394442,197.68,197.62,2.5332]
[1735657209113,2.5328,197.66,197.62,2.5332]
[1735657209507,12.31394442,197.68,197.62,2.5332]
[1735657209806,12.31394442,197.68,197.63,2.5331]
[1735657210002,3.34,197.69,197.57,12.31394442]
[1735657210208,12.31394442,197.71,197.58,3.051]
[1735657210407,2.5325,197.68,197.64,2.5329]
[1735657211403,2.5328,197.66,197.58,293.391]
[1735657211612,12.31394442,197.68,197.58,293.391]
[1735657212408,12.31394442,197.68,197.61,2.5333]
[1735657213315,2.5329,197.65,197.61,2.5333]
[1735657213814,3.34,197.66,197.61,2.5333]
[1735657214517,7.87944246,197.63,197.58,287.0]
[1735657214716,7.87944246,197.63,197.56,7.87944246]
[1735657214916,2.533,197.64,197.6,2.5334]
[1735657215215,7.87944246,197.65,197.58,7.87944246]
[1735657215409,10.41234246,197.65,197.6,2.5335]
[1735657215610,7.87944246,197.65,197.6,2.5335]
[1735657216014,7.87944246,197.63,197.6,2.5335]
[1735657216206,7.87944246,197.63,197.56,7.87944246]
[1735657216613,10.41254246,197.63,197.56,7.87944246]
[1735657217512,10.41254246,197.63,197.6,2.5335]
[1735657217910,10.41254246,197.63,197.59,2.5336]
[1735657218909,7.87944246,197.63,197.56,7.87944246]
[1735657219106,7.87944246,197.65,197.58,7.87944246]
[1735657219316,7.87944246,197.67,197.6,7.87944246]
[1735657219508,2.5326,197.68,197.64,2.5328]
[1735657219707,7.87944246,197.67,197.64,2.5328]
[1735657220421,10.41204246,197.67,197.61,1.5062]
[1735657220619,10.41204246,197.67,197.63,2.5331]
[1735657221119,10.41204246,197.67,197.61,1.5062]
[1735657222523,10.41204246,197.67,197.64,2.533]
[1735657222821,7.87944246,197.67,197.61,1.5062]
[1735657223120,7.87944246,197.67,197.64,2.5328]
[1735657223321,7.87944246,197.69,197.62,7.87944246]
[1735657223522,10.41184246,197.69,197.62,7.87944246]
[1735657224022,10.41184246,197.69,197.65,2.5327]
[1735657224722,7.87944246,197.67,197.65,2.5327]
[1735657224921,3.34,197.71,197.65,2.5327]
[1735657225124,7.87944246,197.68,197.65,2.5327]
[1735657226226,7.87944246,197.68,197.62,7.87944246]
[1735657226227,2.5326,197.67,197.64,2.5329]
[1735657226923,7.87944246,197.66,197.61,3.0649]
[1735657227222,7.87944246,197.64,197.58,7.87944246]
[1735657227428,7.87944246,197.62,197.56,9.36774246]
[1735657227621,7.87944246,197.62,197.56,1.4883]
[1735657227821,3.34,197.66,197.57,7.87944246]
[1735657228024,7.87944246,197.61,197.59,2.5335]
[1735657228328,7.87944246,197.61,197.56,1.4883]
[1735657228933,7.87944246,197.59,197.56,1.4883]
[1735657229226,3.34,197.66,197.56,1.4883]
[1735657229419,7.87944246,197.61,197.56,1.4883]
[1735657229923,2.5337,197.59,197.56,1.4883]
[1735657230231,7.87944246,197.61,197.56,1.4883]
[1735657230426,12.31605192,197.64,197.56,1.4883]
[1735657230623,2.5336,197.6,197.56,4.0222]
[1735657231130,2.5336,197.6,197.56,1.4883]
[1735657231430,2.5334,197.61,197.57,2.5338]
[1735657231722,2.5334,197.61,197.56,1.4883]
[1735657231930,2.5334,197.61,197.57,2.5338]
[1735657232726,12.31605192,197.65,197.57,2.5338]
[1735657232926,2.5335,197.6,197.57,2.5338]
[1735657233729,12.31605192,197.65,197.56,1.4883]
[1735657233927,2.5333,197.62,197.58,2.5336]
[1735657234126,2.5333,197.62,197.56,1.4883]
[1735657234531,12.31605192,197.65,197.56,1.4883]
[1735657234732,15.65605192,197.71,197.57,12.31605192]
[1735657234924,15.65605192,197.71,197.58,1.4814]
[1735657235333,2.5327,197.67,197.64,2.5329]
[1735657237532,2.5324,197.69,197.65,2.5328]
[1735657237732,3.34,197.73,197.61,3.34]
[1735657238128,12.31605192,197.74,197.63,12.31605192]
[1735657238326,7.82761426,197.76,197.63,299.31605192]
[1735657238525,4.23276448,197.78,197.69,12.31605192]
[1735657238834,2.5312,197.78,197.74,2.5316]
[1735657239226,21.10574108,197.8,197.7,3.1079]
[1735657239433,2.5312,197.79,197.73,2.5318]
[1735657239732,2.5312,197.79,197.7,3.1079]
[1735657240730,22.58014108,197.88,197.75,12.31605192]
[1735657240936,33.421793,197.88,197.76,4.8682]
[1735657241129,21.10574108,197.88,197.78,12.31605192]
[1735657241329,21.10574108,197.92,197.81,12.31605192]
[1735657241531,21.10574108,197.92,197.82,3.34]
[1735657242237,12.31605192,197.9,197.79,290.1079]
[1735657242425,12.31605192,197.87,197.78,3.34]
[1735657242834,12.31605192,197.87,197.76,8.54348803]
[1735657243035,2.5307,197.82,197.76,11.07488803]
[1735657243530,2.5305,197.84,197.78,2.5312]
[1735657243737,12.31605192,197.87,197.78,2.5312]
[1735657244034,12.31605192,197.87,197.76,1.5282]
[1735657244935,12.31605192,197.84,197.71,12.31605192]
[1735657245137,12.31605192,197.81,197.7,3.34]
[1735657245436,2.5312,197.78,197.72,2.5319]
[1735657245632,12.31605192,197.81,197.7,3.34]
[1735657245832,2.5311,197.79,197.73,2.5317]
[1735657246329,5.8706,197.83,197.77,2.5312]
[1735657246524,3.34,197.83,197.74,12.31605192]
[1735657246730,15.65605192,197.87,197.75,3.34]
[1735657246925,12.31605192,197.9,197.77,12.31605192]
[1735657247126,12.31605192,197.9,197.78,288.5007]
[1735657247326,3.34,197.92,197.8,12.31605192]
[1735657247527,12.31605192,197.93,197.81,3.34]
[1735657247728,2.5298,197.9,197.81,3.34]
[1735657248332,12.31605192,197.93,197.84,2.5303]
[1735657248536,12.31605192,197.9,197.81,3.34]
[1735657248739,12.31605192,197.9,197.8,2.5309]
[1735657248936,12.31605192,197.87,197.78,3.0134]
[1735657249135,2.5308,197.82,197.78,1.5007]
[1735657249337,12.31605192,197.84,197.78,1.5007]
[1735657249538,2.5308,197.81,197.78,1.5007]
[1735657249732,12.31605192,197.84,197.74,3.34]
[1735657250035,12.31605192,197.84,197.74,5.8716]
[1735657250229,2.5308,197.81,197.74,3.34]
[1735657250641,2.531,197.8,197.75,2.5314]
[1735657251037,1.5946,197.86,197.74,15.65605192]
[1735657251239,2.5308,197.82,197.77,2.5312]
[1735657251442,4.9346,197.86,197.74,15.65605192]
[1735657252039,12.31605192,197.9,197.74,302.65605192]
[1735657252243,15.65605192,197.93,197.77,299.31605192]
[1735657252443,2.5299,197.88,197.83,2.5305]
[1735657253144,2.5303,197.86,197.81,2.5307]
[1735657253445,12.31605192,197.9,197.8,3.34]
[1735657253947,2.5301,197.87,197.83,2.5305]
[1735657255350,2.5299,197.88,197.83,2.5305]
[1735657255547,2.5299,197.88,197.84,2.5304]
[1735657255745,3.34,197.92,197.8,15.65605192]
[1735657256048,12.31605192,197.93,197.8,15.65605192]
[1735657256250,12.31605192,197.9,197.8,3.34]
[1735657256949,3.34,197.92,197.8,3.34]
[1735657257243,12.31605192,197.96,197.81,299.31605192]
[1735657257442,2.5292,197.94,197.89,2.5297]
[1735657257648,2.5292,197.94,197.84,12.31605192]
[1735657257649,2.5292,197.94,197.86,3.34]
[1735657257846,2.5292,197.94,197.87,1.5514]
[1735657258047,3.34,197.98,197.87,1.5514]
[1735657258646,2.529,197.96,197.91,2.5294]
[1735657259257,2.5291,197.94,197.9,2.5296]